bitfinex-derivatives/quotes_BTCF0:USTF0_20240815
["timestamp","ask_amount","ask_price","bid_price","bid_amount"]
[1723761492877,0.005,57748.0,57747.0,1.232701]
[1723761493095,0.00025961,57753.0,57752.0,0.043278]
[1723761493281,0.13025961,57753.0,57752.0,0.043278]
[1723761494186,0.19088,57762.0,57752.0,0.869]
[1723761494386,0.3608,57778.0,57769.0,0.043265]
[1723761494681,0.4908,57778.0,57769.0,0.043265]
[1723761495489,0.4908,57778.0,57768.0,0.00025961]
[1723761495684,0.4908,57778.0,57769.0,0.001]
[1723761495884,0.5048,57778.0,57769.0,0.001]
[1723761496093,0.548058,57778.0,57769.0,0.001]
[1723761496487,0.3608,57773.0,57769.0,0.001]
[1723761496687,0.4808,57773.0,57769.0,0.002]
[1723761496991,0.019,57778.0,57777.0,0.043259]
[1723761497188,0.26081951,57794.0,57777.0,0.6598]
[1723761497385,0.4708,57794.0,57784.0,0.043253]
[1723761497589,0.4708,57794.0,57783.0,0.00025961]
[1723761497990,0.3608,57788.0,57783.0,0.00025961]
[1723761498297,0.4908,57788.0,57783.0,0.00025961]
[1723761499291,0.5018,57788.0,57783.0,0.00125961]
[1723761499696,0.141,57788.0,57784.0,0.299]
[1723761499994,0.00672298,57788.0,57786.0,0.043252]
[1723761501084,0.00672298,57788.0,57784.0,0.36192]
[1723761501290,0.00672298,57788.0,57784.0,0.3608]
[1723761501996,0.00572298,57788.0,57784.0,0.3608]
[1723761502202,0.003,57788.0,57786.0,0.043252]
[1723761502388,0.003,57788.0,57787.0,0.1117]
[1723761502996,0.3608,57793.0,57787.0,0.1117]
[1723761503199,0.4708,57793.0,57787.0,0.1117]
[1723761503695,0.4708,57793.0,57787.0,0.1257]
[1723761504292,0.4708,57793.0,57789.0,0.04325]
[1723761505710,0.4708,57793.0,57787.0,0.1257]
[1723761505896,0.4708,57793.0,57791.0,0.043248]
[1723761506097,0.4708,57793.0,57787.0,0.1257]
[1723761506499,0.3608,57788.0,57787.0,0.1257]
[1723761506691,0.3608,57788.0,57787.0,0.008]
[1723761506892,0.4908,57788.0,57787.0,0.008]
[1723761507297,0.4908,57788.0,57784.0,0.01297191]
[1723761507597,0.4908,57788.0,57783.0,0.04351361]
[1723761508393,0.13,57788.0,57783.0,0.00025961]
[1723761508593,0.13,57788.0,57787.0,0.006]
[1723761508795,0.07060318,57788.0,57787.0,0.18]
[1723761509105,0.3608,57793.0,57787.0,0.18]
[1723761509290,0.4708,57793.0,57787.0,0.174]
[1723761509599,0.4708,57793.0,57791.0,0.043248]
[1723761511101,0.4708,57793.0,57791.0,0.05610088]
[1723761512305,0.4708,57793.0,57791.0,0.05710088]
[1723761512698,0.4708,57793.0,57791.0,0.06010088]
[1723761513304,0.4708,57793.0,57791.0,0.01685288]
[1723761513610,0.4708,57793.0,57791.0,0.004]
[1723761514005,0.4708,57793.0,57791.0,0.01689818]
[1723761514309,0.17,57802.0,57801.0,0.043241]
[1723761514310,0.14825822,57802.0,57801.0,0.043241]
[1723761514604,0.3608,57820.0,57801.0,0.81834996]
[1723761514912,0.4708,57820.0,57807.0,0.3608]
[1723761515394,0.4708,57820.0,57815.0,0.04323]
[1723761516002,0.4718,57820.0,57815.0,0.04323]
[1723761516400,0.111,57820.0,57819.0,0.043227]
[1723761516799,0.0835941,57820.0,57819.0,0.043227]
[1723761517201,0.02555214,57820.0,57819.0,0.043227]
[1723761517509,0.002,57820.0,57819.0,0.962067]
[1723761517703,0.05133986,57852.0,57819.0,0.42312888]
[1723761518006,0.3608,57853.0,57819.0,0.42312888]
[1723761518007,0.13004,57849.0,57844.0,0.3608]
[1723761518397,0.13004,57849.0,57846.0,0.043207]
[1723761518803,0.3608,57847.0,57843.0,0.299]
[1723761519210,0.3608,57847.0,57844.0,0.00112]
[1723761519405,0.00104,57849.0,57845.0,0.043208]
[1723761519608,0.00104,57849.0,57846.0,0.001]
[1723761520105,4e-05,57849.0,57845.0,0.043208]
[1723761520300,0.3608,57846.0,57843.0,0.002]
[1723761520611,0.4908,57846.0,57832.0,0.01318843]
[1723761520816,0.13,57846.0,57836.0,0.3608]
[1723761521113,0.51864,57845.0,57836.0,0.3608]
[1723761521402,0.1056,57845.0,57837.0,0.299]
[1723761521610,0.1056,57845.0,57837.0,0.342214]
[1723761521910,0.3608,57842.0,57841.0,1e-08]
[1723761522104,1.00944,57842.0,57841.0,1e-08]
[1723761522504,1.40944,57842.0,57841.0,1e-08]
[1723761522809,1.40944,57842.0,57841.0,0.00096001]
[1723761523103,1.40944,57842.0,57841.0,0.00196001]
[1723761523497,1.40944,57842.0,57841.0,0.002]
[1723761523911,1.00944,57842.0,57841.0,0.002]
[1723761524607,1.40944,57842.0,57841.0,0.002]
[1723761525107,1.40944,57842.0,57836.0,0.00025936]
[1723761525305,0.4908,57842.0,57836.0,0.00025936]
[1723761525714,0.4908,57842.0,57815.0,0.00013838]
[1723761525715,0.3608,57837.0,57815.0,0.00013838]
[1723761525913,0.3608,57817.0,57815.0,0.00013838]
[1723761526103,0.00013838,57816.0,57808.0,0.299]
[1723761526302,0.043231,57814.0,57808.0,0.299]
[1723761526502,0.3608,57811.0,57803.0,0.3608]
[1723761526702,0.4808,57811.0,57803.0,0.3608]
[1723761526906,0.4808,57811.0,57804.0,0.00025936]
[1723761527614,0.4808,57811.0,57806.0,0.043237]
[1723761527812,0.4808,57811.0,57807.0,0.043236]
[1723761528006,0.4808,57811.0,57808.0,0.043236]
[1723761528410,0.4808,57811.0,57804.0,0.00025936]
[1723761528617,0.12,57811.0,57809.0,0.342235]
[1723761528914,0.00039774,57816.0,57815.0,0.05123]
[1723761529116,0.12039774,57816.0,57815.0,0.71103]
[1723761529617,0.12039774,57816.0,57815.0,0.70303]
[1723761529917,0.12039774,57816.0,57815.0,0.3608]
[1723761530307,0.12039774,57816.0,57815.0,0.3618]
[1723761530509,0.12139774,57816.0,57815.0,0.3618]
[1723761531209,0.12139774,57816.0,57815.0,0.001]
[1723761532209,0.12139774,57816.0,57814.0,0.043231]
[1723761532510,0.12139774,57816.0,57815.0,0.001]
[1723761533508,0.12039774,57816.0,57815.0,0.001]
[1723761535219,0.12139774,57816.0,57815.0,0.001]
[1723761536018,0.12039774,57816.0,57815.0,0.001]
[1723761536218,0.12039774,57816.0,57815.0,0.002]
[1723761536724,0.12039774,57816.0,57815.0,0.003]
[1723761536921,0.12039774,57816.0,57815.0,0.004]
[1723761538220,0.12039774,57816.0,57815.0,0.003]
[1723761538521,0.12239774,57816.0,57815.0,0.003]
[1723761538917,0.12239774,57816.0,57815.0,0.002]
[1723761539124,0.12039774,57816.0,57815.0,0.002]
[1723761540317,0.63927774,57816.0,57815.0,0.002]
[1723761540514,0.63927774,57816.0,57804.0,0.00137936]
[1723761540515,0.043235,57810.0,57804.0,0.00025936]
[1723761540718,0.534035,57810.0,57804.0,0.00025936]
[1723761541317,0.404035,57809.0,57804.0,0.00025936]
[1723761541616,0.051277,57808.0,57804.0,0.00025936]
[1723761541827,0.181277,57808.0,57804.0,0.00025936]
[1723761542032,0.181277,57808.0,57806.0,0.043237]
[1723761542319,0.13,57808.0,57806.0,0.043237]
[1723761542526,0.051277,57807.0,57806.0,0.043237]
[1723761542719,0.11,57807.0,57806.0,0.043237]
[1723761543319,0.11,57807.0,57804.0,0.04649836]
[1723761543519,0.161277,57807.0,57804.0,0.04649836]
[1723761543724,0.161277,57807.0,57804.0,0.04349836]
[1723761544427,0.11,57807.0,57805.0,0.043238]
[1723761545117,0.11,57807.0,57806.0,0.3608]
[1723761545118,0.10360227,57807.0,57806.0,0.3608]
[1723761545427,0.10560227,57807.0,57806.0,0.4757]
[1723761545614,0.10560227,57807.0,57806.0,0.99466]
[1723761545822,0.10560227,57807.0,57806.0,1.037897]
[1723761546021,0.003,57807.0,57806.0,1.037897]
[1723761546222,0.002,57807.0,57806.0,1.044897]
[1723761546425,0.001,57807.0,57806.0,1.044897]
[1723761546624,0.002,57807.0,57806.0,1.055897]
[1723761547525,0.002,57807.0,57806.0,0.536937]
[1723761547727,0.002,57807.0,57806.0,0.54746741]
[1723761547926,0.00039774,57816.0,57815.0,0.04323]
[1723761548121,0.13039774,57816.0,57815.0,0.39193]
[1723761548440,0.13039774,57816.0,57815.0,0.91081]
[1723761548631,0.13039774,57816.0,57815.0,0.39193]
[1723761548825,0.00039774,57816.0,57815.0,0.39193]
[1723761549326,0.00039774,57816.0,57815.0,0.75773]
[1723761549731,0.00039774,57816.0,57815.0,0.76173]
[1723761550430,0.00039774,57816.0,57815.0,0.77212767]
[1723761550623,0.00039774,57816.0,57815.0,1.69100767]
[1723761551332,0.00039774,57816.0,57815.0,1.74147926]
[1723761551521,0.00039774,57816.0,57815.0,1.34147926]
[1723761551719,0.00039774,57816.0,57815.0,1.74147926]
[1723761552021,0.051277,57839.0,57834.0,0.043216]
[1723761552225,0.051277,57839.0,57838.0,0.2988]
[1723761552226,0.13,57839.0,57838.0,0.2988]
[1723761552832,0.181277,57839.0,57832.0,0.2988]
[1723761553031,0.13,57839.0,57833.0,0.00025936]
[1723761553224,0.13,57839.0,57834.0,0.001]
[1723761553225,0.143,57839.0,57834.0,0.001]
[1723761553420,0.208277,57839.0,57838.0,0.001]
[1723761553625,0.157,57839.0,57838.0,0.001]
[1723761555129,0.144,57839.0,57838.0,0.2998]
[1723761555439,0.157,57839.0,57838.0,0.2988]
[1723761555624,0.157,57839.0,57838.0,0.35239992]
[1723761555829,0.143,57839.0,57838.0,0.35239992]
[1723761556027,0.144,57839.0,57838.0,0.35339992]
[1723761556333,0.157,57839.0,57838.0,0.35439992]
[1723761556733,0.027,57839.0,57838.0,0.35439992]
[1723761558128,0.047,57839.0,57838.0,1.23387992]
[1723761558533,0.027,57839.0,57838.0,1.23387992]
[1723761559136,0.027,57839.0,57838.0,0.67198692]
[1723761562039,0.147,57839.0,57838.0,0.67198692]
[1723761564333,0.147,57839.0,57833.0,0.00025936]
[1723761564334,1.38728,57839.0,57833.0,0.00025936]
[1723761564633,0.3608,57834.0,57833.0,0.01094327]
[1723761564935,0.4808,57834.0,57833.0,0.00025936]
[1723761565539,0.4808,57834.0,57833.0,0.00125936]
[1723761565832,0.4808,57834.0,57833.0,0.00225936]
[1723761566236,0.4908,57834.0,57833.0,0.00125936]
[1723761566435,0.5018,57834.0,57833.0,0.00225936]
[1723761571648,0.141,57834.0,57833.0,0.00225936]
[1723761571835,0.10987734,57834.0,57833.0,0.00225936]
[1723761572041,0.021,57834.0,57833.0,0.00225936]
[1723761572442,0.01187731,57834.0,57833.0,0.00225936]
[1723761573336,0.14187731,57834.0,57833.0,0.00225936]
[1723761574643,0.01187731,57834.0,57833.0,0.00225936]
[1723761575637,0.01187731,57834.0,57833.0,0.14225936]
[1723761575842,0.01187731,57834.0,57833.0,0.38125936]
[1723761576444,0.01187731,57834.0,57833.0,0.89997936]
[1723761576651,0.01187731,57834.0,57833.0,0.38125936]
[1723761576849,0.051277,57843.0,57833.0,0.38125936]
[1723761577039,0.13,57843.0,57841.0,0.239]
[1723761577241,0.181277,57843.0,57841.0,0.239]
[1723761577945,0.181277,57843.0,57839.0,0.043212]
[1723761578140,0.181277,57843.0,57838.0,0.2987]
[1723761578141,0.13,57843.0,57840.0,0.043212]
[1723761578341,0.181277,57843.0,57840.0,0.043212]
[1723761579243,0.051277,57842.0,57840.0,0.043212]
[1723761579444,0.181277,57842.0,57840.0,0.043212]
[1723761579840,0.181277,57842.0,57841.0,0.001]
[1723761580051,0.181277,57842.0,57841.0,0.044211]
[1723761580454,0.187277,57842.0,57841.0,0.043211]
[1723761580945,0.181277,57842.0,57841.0,0.043211]
[1723761581147,0.187277,57842.0,57841.0,0.044211]
[1723761581346,0.136,57842.0,57841.0,0.044211]
[1723761582548,0.14,57842.0,57841.0,0.045211]
[1723761585045,0.04275502,57842.0,57841.0,0.045211]
[1723761585243,0.07,57842.0,57841.0,0.045211]
[1723761585852,0.00025856,57844.0,57843.0,0.04321]
[1723761586048,0.13,57844.0,57841.0,0.3628]
[1723761586348,0.32931266,57849.0,57843.0,0.2987]
[1723761586349,0.26085951,57849.0,57843.0,0.2987]
[1723761586552,0.38085951,57849.0,57844.0,0.05091741]
[1723761586746,0.44931266,57849.0,57848.0,0.043206]
[1723761587054,0.12004,57849.0,57848.0,0.043206]
[1723761587549,0.19,57858.0,57849.0,0.043205]
[1723761587749,0.3608,57866.0,57849.0,0.043205]
[1723761587750,0.06898614,57869.0,57857.0,0.72734444]
[1723761587952,0.06898614,57869.0,57868.0,0.2987]
[1723761587953,0.13,57869.0,57868.0,0.2987]
[1723761589047,0.13,57869.0,57868.0,0.341891]
[1723761589247,0.13,57869.0,57868.0,0.2987]
[1723761589447,0.6484,57869.0,57866.0,0.01039115]
[1723761589657,0.13,57869.0,57868.0,0.001]
[1723761590549,0.13,57869.0,57868.0,0.002]
[1723761590550,0.6484,57869.0,57868.0,0.002]
[1723761591151,1.0484,57869.0,57863.0,0.00025936]
[1723761591347,0.6484,57869.0,57863.0,0.00025936]
[1723761591545,0.6484,57869.0,57863.0,0.01097688]
[1723761591947,0.043192,57866.0,57863.0,0.01097688]
[1723761592152,0.3608,57864.0,57863.0,0.01097688]
[1723761592346,0.4908,57864.0,57863.0,0.01097688]
[1723761592547,1.00928,57864.0,57863.0,0.01097688]
[1723761592952,0.64848,57864.0,57863.0,0.01197688]
[1723761593353,0.64848,57864.0,57863.0,0.01097688]
[1723761593555,0.13,57864.0,57863.0,0.01297688]
[1723761593957,0.64848,57864.0,57863.0,0.01297688]
[1723761594547,0.13,57864.0,57863.0,0.01297688]
[1723761595365,0.64848,57864.0,57863.0,0.01297688]
[1723761595561,0.13,57864.0,57863.0,0.01297688]
[1723761596062,0.13,57864.0,57863.0,0.05617188]
[1723761596560,0.3608,57870.0,57869.0,0.04319]
[1723761596756,0.4708,57870.0,57869.0,0.34189]
[1723761597156,0.11,57870.0,57869.0,0.34189]
[1723761597558,0.3608,57877.0,57876.0,0.043185]
[1723761597756,0.4608,57877.0,57876.0,0.341885]
[1723761597960,0.15,57886.0,57883.0,0.043179]
[1723761598261,0.09,57886.0,57885.0,0.2388]
[1723761598465,0.09,57886.0,57885.0,0.281978]
[1723761599466,0.2198,57891.0,57890.0,0.043174]
[1723761599653,0.3298,57891.0,57885.0,0.5996]
[1723761599850,0.002,57886.0,57885.0,0.403978]
[1723761600049,0.112,57886.0,57885.0,0.702478]
[1723761600262,0.113,57886.0,57885.0,0.703478]
[1723761600460,0.5408,57895.0,57893.0,0.043172]
[1723761600461,0.3608,57895.0,57893.0,0.043172]
[1723761600661,0.4808,57895.0,57893.0,0.043172]
[1723761600864,0.4808,57895.0,57893.0,0.01863612]
[1723761601361,0.4808,57895.0,57885.0,0.6603]
[1723761601362,0.5182,57894.0,57885.0,0.3618]
[1723761601679,0.3608,57887.0,57885.0,0.001]
[1723761601854,0.043178,57885.0,57879.0,0.00025914]
[1723761602055,0.043185,57877.0,57869.0,0.40399]
[1723761602261,0.13,57877.0,57869.0,0.3608]
[1723761602459,0.043187,57873.0,57869.0,0.3608]
[1723761602666,0.043189,57871.0,57869.0,0.3608]
[1723761602856,0.12,57871.0,57869.0,0.3608]
[1723761603053,0.12,57871.0,57869.0,0.40399]
[1723761603262,0.12,57871.0,57869.0,0.40499]
[1723761603869,0.12,57871.0,57869.0,0.3618]
[1723761604055,0.12,57871.0,57869.0,0.40499]
[1723761604255,0.12,57871.0,57869.0,0.40399]
[1723761604455,0.12,57871.0,57869.0,0.40499]
[1723761604863,0.12,57871.0,57869.0,0.40599]
[1723761605365,0.12,57871.0,57870.0,0.1073]
[1723761606465,0.121,57871.0,57870.0,0.1093]
[1723761607163,0.121,57871.0,57870.0,0.12000867]
[1723761607670,0.121,57871.0,57870.0,0.002]
[1723761608259,1.082589,57871.0,57870.0,0.002]
[1723761608656,0.682589,57871.0,57870.0,0.002]
[1723761608862,1.082589,57871.0,57870.0,0.002]
[1723761609971,0.043192,57867.0,57864.0,0.00025914]
[1723761610280,0.12,57867.0,57864.0,0.00025914]
[1723761610570,0.51844,57866.0,57864.0,0.00025914]
[1723761610786,0.63844,57866.0,57864.0,0.00025914]
[1723761610960,0.51844,57865.0,57864.0,0.00025914]
[1723761611161,0.63844,57865.0,57864.0,0.00025914]
[1723761611366,1.03844,57865.0,57864.0,0.00025914]
[1723761612566,1.03944,57865.0,57864.0,0.00025914]
[1723761613575,0.51848,57864.0,57845.0,0.3608]
[1723761613875,0.3608,57858.0,57851.0,0.404003]
[1723761614067,0.3608,57858.0,57851.0,0.3608]
[1723761614068,0.1172,57857.0,57851.0,0.3608]
[1723761614269,0.2472,57857.0,57851.0,0.3608]
[1723761614777,0.00013155,57856.0,57851.0,0.3608]
[1723761614977,0.13013155,57856.0,57851.0,0.3608]
[1723761615170,0.13013155,57856.0,57848.0,0.00025914]
[1723761615368,0.11199385,57853.0,57848.0,0.00025914]
[1723761615675,0.06879185,57852.0,57848.0,0.00025914]
[1723761615873,0.17879185,57852.0,57848.0,0.00025914]
[1723761616070,0.11,57852.0,57848.0,0.00025914]
[1723761616570,0.11,57852.0,57851.0,0.3608]
[1723761616774,0.117,57852.0,57848.0,0.00125914]
[1723761617482,0.117,57852.0,57850.0,0.404004]
[1723761618988,0.12,57852.0,57850.0,0.405004]
[1723761619568,0.122,57852.0,57850.0,0.405004]
[1723761619968,0.122,57852.0,57850.0,0.044204]
[1723761620976,0.51856,57851.0,57850.0,0.001]
[1723761621280,0.63856,57851.0,57850.0,0.001]
[1723761621577,0.12,57851.0,57850.0,0.001]
[1723761621983,0.12,57851.0,57850.0,0.2389]
[1723761622171,0.126,57851.0,57850.0,0.2399]
[1723761622373,0.132,57851.0,57850.0,0.001]
[1723761622577,0.132,57851.0,57850.0,0.01182226]
[1723761623176,0.693764,57851.0,57850.0,0.01182226]
[1723761623378,1.093764,57851.0,57850.0,0.001]
[1723761623980,0.693764,57851.0,57850.0,0.001]
[1723761624181,0.65056,57851.0,57850.0,0.001]
[1723761624381,0.132,57851.0,57850.0,0.001]
[1723761624585,0.65056,57851.0,57850.0,0.001]
[1723761624784,0.132,57851.0,57850.0,0.001]
[1723761625681,0.65056,57851.0,57850.0,0.001]
[1723761625883,0.65056,57851.0,57850.0,0.044204]
[1723761626079,0.132,57851.0,57850.0,0.044204]
[1723761628281,0.132,57851.0,57850.0,0.05494773]
[1723761628480,0.132,57851.0,57850.0,0.001]
[1723761628676,1.093764,57851.0,57850.0,0.001]
[1723761629781,0.043205,57849.0,57848.0,0.00025914]
[1723761629979,0.153205,57849.0,57848.0,0.00025914]
[1723761630187,0.153205,57849.0,57842.0,0.04321]
[1723761630188,0.04321,57843.0,57839.0,0.1134]
[1723761630390,0.15321,57843.0,57839.0,0.1134]
[1723761631591,0.11,57843.0,57842.0,0.04321]
[1723761632287,0.043213,57839.0,57835.0,0.00025914]
[1723761632479,0.13,57839.0,57835.0,0.04347414]
[1723761632680,0.13,57839.0,57838.0,0.404013]
[1723761634684,2.03838,57839.0,57828.0,0.05086011]
[1723761634980,0.79039762,57829.0,57813.0,0.1117]
[1723761635181,0.06879765,57825.0,57813.0,0.1117]
[1723761635487,0.043225,57823.0,57818.0,0.043228]
[1723761635689,0.043226,57821.0,57813.0,0.1117]
[1723761635887,0.00013113,57820.0,57815.0,0.00025935]
[1723761636089,0.11013113,57820.0,57815.0,0.00025935]
[1723761636289,0.11013113,57820.0,57815.0,0.04348935]
[1723761636486,0.11013113,57820.0,57815.0,0.00025935]
[1723761636487,0.15335813,57820.0,57815.0,0.00025935]
[1723761636889,0.043229,57817.0,57815.0,0.00025935]
[1723761637084,0.13,57817.0,57815.0,0.00025935]
[1723761637696,0.13,57817.0,57815.0,0.04348935]
[1723761637996,0.131,57817.0,57815.0,0.05448935]
[1723761639395,0.132,57817.0,57815.0,0.06648935]
[1723761639988,0.132,57817.0,57815.0,0.02325935]
[1723761640599,0.175229,57817.0,57815.0,0.02325935]
[1723761641100,0.132,57817.0,57815.0,0.02325935]
[1723761641592,0.175229,57817.0,57815.0,0.02325935]
[1723761643098,0.132,57817.0,57815.0,0.02325935]
[1723761644199,0.175229,57817.0,57815.0,0.02325935]
[1723761645201,0.175229,57817.0,57816.0,0.3608]
[1723761645803,0.174229,57817.0,57816.0,0.3608]
[1723761646101,0.175229,57817.0,57816.0,0.3608]
[1723761646295,0.292329,57817.0,57816.0,0.3608]
[1723761646501,0.04323,57816.0,57815.0,0.01125935]
[1723761646704,0.16323,57816.0,57815.0,0.01125935]
[1723761647206,0.16323,57816.0,57815.0,0.00625935]
[1723761647905,0.16323,57816.0,57815.0,0.01125935]
[1723761648204,0.16323,57816.0,57815.0,0.00525935]
[1723761648900,0.16423,57816.0,57815.0,0.01125935]
[1723761650497,0.043236,57808.0,57805.0,0.1134]
[1723761650707,0.043236,57808.0,57804.0,0.3608]
[1723761650708,0.12,57808.0,57804.0,0.3608]
[1723761651000,0.043238,57805.0,57804.0,0.3608]
[1723761651201,0.163238,57805.0,57804.0,0.3608]
[1723761651702,0.163429,57805.0,57804.0,0.3608]
[1723761652205,0.163429,57805.0,57804.0,0.3708]
[1723761652604,0.164429,57805.0,57804.0,0.3708]
[1723761652813,0.164429,57805.0,57804.0,0.01]
[1723761652814,0.764129,57805.0,57804.0,0.01]
[1723761653504,0.765129,57805.0,57804.0,0.018]
[1723761655207,0.768129,57805.0,57804.0,0.008]
[1723761655705,0.04324,57803.0,57799.0,0.00025935]
[1723761656006,0.04324,57802.0,57799.0,0.00025935]
[1723761656215,0.15324,57802.0,57799.0,0.00025935]
[1723761656799,0.15324,57802.0,57799.0,0.00225935]
[1723761657905,0.11,57802.0,57799.0,0.00525935]
[1723761658105,0.11,57802.0,57801.0,0.3608]
[1723761658710,0.11,57802.0,57801.0,0.404041]
[1723761659106,0.10372896,57802.0,57801.0,0.404041]
[1723761659612,0.10372896,57802.0,57801.0,1.33634459]
[1723761660213,0.0112986,57802.0,57801.0,1.33634459]
[1723761661617,0.0112986,57802.0,57801.0,1.33834459]
[1723761663116,0.0102986,57802.0,57801.0,0.37610359]
[1723761664412,0.0112986,57802.0,57801.0,0.37610359]
[1723761664709,0.0112986,57802.0,57801.0,0.37410359]
[1723761665115,0.0112986,57802.0,57801.0,0.3608]
[1723761665812,0.08009625,57802.0,57801.0,0.3608]
[1723761666214,0.12333625,57802.0,57801.0,0.3608]
[1723761667710,0.0545386,57802.0,57801.0,0.3608]
[1723761668712,0.0545386,57802.0,57799.0,0.00025935]
[1723761669815,0.0535386,57802.0,57799.0,0.00025935]
[1723761670010,0.0535386,57802.0,57799.0,0.00225935]
[1723761670209,0.06894773,57801.0,57799.0,0.00225935]
[1723761670425,0.23218873,57801.0,57799.0,0.00225935]
[1723761671015,0.23218873,57801.0,57799.0,0.00525935]
[1723761671216,0.18894773,57801.0,57799.0,0.04850135]
[1723761671417,0.18894773,57801.0,57799.0,0.00225935]
[1723761671616,0.18894773,57801.0,57799.0,0.00525935]
[1723761672224,0.23218873,57801.0,57799.0,0.00525935]
[1723761673225,0.163241,57801.0,57799.0,0.00525935]
[1723761673924,0.043242,57800.0,57799.0,0.00525935]
[1723761674120,0.153242,57800.0,57799.0,0.00525935]
[1723761674729,0.392142,57800.0,57799.0,0.00525935]
[1723761675126,0.392142,57800.0,57799.0,0.00225935]
[1723761675317,0.392142,57800.0,57799.0,0.00525935]
[1723761675721,0.153242,57800.0,57799.0,0.00525935]
[1723761675921,0.11,57800.0,57799.0,0.00325935]
[1723761676228,0.153242,57800.0,57799.0,0.00525935]
[1723761676926,0.392142,57800.0,57799.0,0.00525935]
[1723761677626,0.736242,57800.0,57799.0,0.00525935]
[1723761678019,0.043247,57793.0,57783.0,0.1181]
[1723761678220,0.043254,57783.0,57782.0,0.3608]
[1723761678429,0.163254,57783.0,57782.0,0.3608]
[1723761678632,0.04326,57776.0,57770.0,0.043264]
[1723761678820,0.2389,57769.0,57764.0,0.1201]
[1723761679016,0.3589,57769.0,57765.0,0.7140486]
[1723761679220,0.3608,57766.0,57765.0,0.56259018]
[1723761679426,0.4708,57766.0,57765.0,0.56259018]
[1723761679632,0.4708,57766.0,57765.0,0.67079292]
[1723761680822,0.99016,57766.0,57765.0,0.67279292]
[1723761681024,0.99016,57766.0,57765.0,0.32658358]
[1723761681221,0.99016,57766.0,57765.0,0.32858358]
[1723761681525,0.4708,57766.0,57765.0,0.32858358]
[1723761681823,0.38423553,57766.0,57765.0,1.41662282]
[1723761682029,0.38423553,57766.0,57765.0,1.5902503]
[1723761682628,0.38423553,57766.0,57765.0,1.24261672]
[1723761682923,0.38423553,57766.0,57765.0,1.25562064]
[1723761683235,0.38423553,57766.0,57765.0,1.24261672]
[1723761683727,0.90359553,57766.0,57765.0,1.24261672]
[1723761683928,1.30359553,57766.0,57765.0,1.02623588]
[1723761684129,1.30359553,57766.0,57765.0,1.24267106]
[1723761684324,0.90359553,57766.0,57765.0,1.24267106]
[1723761684529,0.38423553,57766.0,57765.0,1.24267106]
[1723761685329,0.38423553,57766.0,57765.0,1.13446832]
[1723761685533,0.38423553,57766.0,57765.0,0.66612084]
[1723761685727,0.38423553,57766.0,57765.0,0.27198472]
[1723761686232,0.11,57766.0,57765.0,0.79134472]
[1723761686427,0.00012388,57768.0,57766.0,0.043267]
[1723761686624,0.05,57768.0,57766.0,0.562587]
[1723761686825,0.05,57768.0,57767.0,0.51932]
[1723761687721,0.05013653,57768.0,57767.0,0.51932]
[1723761688325,0.04668841,57768.0,57767.0,0.51932]
[1723761688525,0.64638841,57768.0,57761.0,0.00017463]
[1723761688729,0.40407,57763.0,57761.0,0.00017463]
[1723761688936,0.40407,57763.0,57750.0,0.3608]
[1723761688937,0.2389,57762.0,57750.0,0.3608]
[1723761689125,0.3589,57762.0,57751.0,0.1212]
[1723761689322,0.043271,57761.0,57751.0,0.1212]
[1723761689533,0.12,57761.0,57752.0,0.043278]
[1723761690133,0.12,57761.0,57751.0,0.1212]
[1723761690827,0.121,57761.0,57754.0,0.043276]
[1723761691134,0.121,57761.0,57759.0,0.043272]
[1723761691135,0.122,57761.0,57759.0,0.043272]
[1723761691329,0.122,57761.0,57760.0,0.1209]
[1723761691526,0.121,57761.0,57760.0,0.1209]
[1723761691739,0.122,57761.0,57760.0,1.0403]
[1723761692441,0.122,57761.0,57760.0,0.6403]
[1723761692732,0.122,57761.0,57760.0,1.0403]
[1723761692932,0.121,57761.0,57760.0,1.0403]
[1723761693141,0.121,57761.0,57760.0,0.1259]
[1723761693645,0.121,57761.0,57760.0,0.13936594]
[1723761694140,0.121,57761.0,57760.0,0.14536594]
[1723761696440,0.121,57761.0,57750.0,0.604]
[1723761696441,0.51961799,57760.0,57738.0,0.05121784]
[1723761696738,0.72880673,57742.0,57729.0,0.3608]
[1723761696937,0.6599,57734.0,57729.0,0.3608]
[1723761697139,0.043293,57732.0,57729.0,0.3608]
[1723761697442,0.163293,57732.0,57729.0,0.3608]
[1723761697835,0.00020458,57731.0,57729.0,0.3608]
[1723761698030,0.12020458,57731.0,57729.0,0.3608]
[1723761698532,0.12020458,57731.0,57729.0,0.3668]
[1723761698740,0.12020458,57731.0,57729.0,0.006]
[1723761699441,0.3608,57730.0,57713.0,0.3608]
[1723761699639,0.3608,57718.0,57713.0,0.109]
[1723761699839,0.4908,57718.0,57713.0,0.109]
[1723761700739,0.29929577,57717.0,57705.0,0.04346945]
[1723761700943,0.3608,57711.0,57705.0,0.00015645]
[1723761701142,0.4808,57711.0,57705.0,0.00015645]
[1723761701442,0.4808,57711.0,57709.0,0.04331]
[1723761702344,0.4818,57711.0,57709.0,0.04331]
[1723761702935,0.4808,57711.0,57709.0,0.04331]
[1723761703143,0.4818,57711.0,57709.0,0.05131]
[1723761703339,0.4828,57711.0,57709.0,0.05131]
[1723761703643,0.4828,57711.0,57709.0,0.41211]
[1723761703644,0.02405787,57711.0,57709.0,0.41211]
[1723761703845,0.02405787,57711.0,57709.0,0.93195]
[1723761704045,0.001,57711.0,57710.0,0.1162]
[1723761704245,0.002,57711.0,57710.0,0.1162]
[1723761704546,0.002,57711.0,57710.0,1.03604]